fUST/lending_fUST_20251117
["ID","MTS","AMOUNT","RATE_DAILY","PERIOD"]
[394220880,1763389840203,-1438.36174036,0.000249,2]
[394220881,1763389840215,-34673.54852534,0.000249,2]
[394220916,1763390046830,2511.13915807,0.000165,3]
[394220919,1763390304278,-2867.43643371,0.00016117,2]
[394220920,1763390304314,-150.0,0.00017262,2]
[394220921,1763390304338,-3869.85225899,0.00018408,2]
[394220922,1763390304363,-177.0,0.00019262,2]
[394220923,1763390360208,-204.0,0.00021262,2]
[394220924,1763390360228,-300.0,0.00021416,2]
[394220925,1763390360250,-500.0,0.00021417,2]
[394220926,1763390360271,-500.0,0.00021417,2]
[394220927,1763390360296,-500.0,0.00021417,2]
[394220928,1763390360321,-500.0,0.00021417,2]
[394220929,1763390360349,-500.0,0.00021417,2]
[394220930,1763390360370,-500.0,0.00021417,2]
[394220931,1763390360392,-314.21647518,0.00021417,2]
[394220932,1763390360415,-500.0,0.00021417,2]
[394220933,1763390360443,-525.46659267,0.00021417,2]
[394220934,1763390360471,-320.7430095,0.00021417,2]
[394220935,1763390360493,-500.0,0.00021417,2]
[394220936,1763390360516,-500.0,0.00021417,2]
[394220937,1763390360539,-500.0,0.00021417,2]
[394220938,1763390360561,-500.0,0.00021417,2]
[394220939,1763390360584,-500.0,0.00021417,2]
[394220940,1763390360613,-500.0,0.00021417,2]
[394220941,1763390360637,-500.0,0.00021417,2]
[394220942,1763390360660,-500.0,0.00021417,2]
[394220943,1763390360683,-500.0,0.00021417,2]
[394220944,1763390360706,-500.0,0.00021417,2]
[394220945,1763390360729,-569.69734021,0.00021417,2]
[394220946,1763390360750,-380.47778367,0.00021417,2]
[394220947,1763390360773,-500.0,0.00021417,2]
[394220948,1763390360796,-321.11010607,0.00021417,2]
[394220950,1763390657179,9518.6140012,0.000165,3]
[394220951,1763390657202,10553.6759988,0.000165,3]
[394220997,1763391032205,-154.25275118,0.00016,2]
[394220999,1763391032215,-150.0,0.00018995,2]
[394221001,1763391032225,-475.74385004,0.00019633,2]
[394221006,1763391032242,-505.78361496,0.00019633,2]
[394221009,1763391032252,-197.61206548,0.00020791,2]
[394221012,1763391032263,-199.0,0.00020994,2]
[394221015,1763391032273,-1200.0,0.00020994,2]
[394221017,1763391032282,-177.0,0.00020995,2]
[394221019,1763391032291,-4932.05431956,0.00020995,2]
[394221021,1763391032303,-45067.94568044,0.00020995,2]
[394221024,1763391032313,-3430.55617812,0.00021314,2]
[394221027,1763391032322,-1200.0,0.00021414,2]
[394221029,1763391032336,-158.53,0.00021415,14]
[394221032,1763391032345,-300.0,0.00021418,20]
[394221035,1763391032355,-300.0,0.00021418,20]
[394221038,1763391032365,-300.0,0.00021418,20]
[394221042,1763391032376,-300.0,0.00021418,20]
[394221044,1763391032386,-300.0,0.00021418,20]
[394221046,1763391032395,-300.0,0.00021418,20]
[394221048,1763391032405,-300.0,0.00021418,20]
[394221050,1763391032415,-300.0,0.00021418,20]
[394221052,1763391032425,-300.0,0.00021418,20]
[394221054,1763391032435,-300.0,0.00021418,20]
[394221055,1763391032445,-300.0,0.00021418,20]
[394221057,1763391032455,-300.0,0.00021418,20]
[394221059,1763391032464,-300.0,0.00021418,20]
[394221061,1763391032474,-300.0,0.00021418,20]
[394221063,1763391032484,-300.0,0.00021418,20]
[394221065,1763391032493,-436.63215261,0.00021566,4]
[394221067,1763391032502,-600.0,0.00021845,20]
[394221069,1763391032512,-500.0,0.00021917,2]
[394221071,1763391032522,-166.46662109,0.00021919,2]
[394221073,1763391032531,-463.25848803,0.00022159,2]
[394221075,1763391032540,-1851.18091817,0.00022159,2]
[394221077,1763391032550,-500.0,0.000226,2]
[394221079,1763391032563,-502.45638021,0.000226,2]
[394221082,1763391032577,-204.0,0.00022995,2]
[394221084,1763391032587,-500.0,0.00023013,2]
[394221086,1763391032598,-450.0,0.00023284,2]
[394221087,1763391032607,-420.49701462,0.00023326,2]
[394221090,1763391032617,-1680.30607043,0.00023326,2]
[394221092,1763391032627,-343.65,0.0002361,3]
[394221094,1763391032637,-171.83,0.0002361,3]
[394221096,1763391032646,-400.67432439,0.0002361,10]
[394221098,1763391032656,-11361.32,0.0002361,10]
[394221109,1763391032737,-500.0,0.00023619,2]
[394221111,1763391032763,-500.0,0.00023619,2]
[394221113,1763391032773,-500.0,0.00023619,2]
[394221115,1763391032783,-500.0,0.00023619,2]
[394221117,1763391032792,-500.0,0.00023619,2]
[394221119,1763391032801,-617.87116002,0.00023619,2]
[394221121,1763391032810,-500.0,0.00023619,2]
[394221123,1763391032820,-500.0,0.00023619,2]
[394221126,1763391032834,-500.0,0.00023619,2]
[394221127,1763391032844,-500.0,0.00023619,2]
[394221130,1763391032853,-500.0,0.00023619,2]
[394221131,1763391032863,-650.0,0.00023619,2]
[394221134,1763391032872,-500.0,0.00023619,2]
[394221135,1763391032882,-300.0,0.00023619,2]
[394221138,1763391032891,-552.87349685,0.00023619,2]
[394221139,1763391032901,-552.87349685,0.00023619,2]
[394221142,1763391032910,-552.87349685,0.00023619,2]
[394221144,1763391032920,-552.87349685,0.00023619,2]
[394221146,1763391032930,-552.87349685,0.00023619,2]
[394221148,1763391032939,-552.87349685,0.00023619,2]
[394221150,1763391032949,-552.87349685,0.00023619,2]
[394221151,1763391032960,-582.79370962,0.00023619,2]
[394221153,1763391032978,-582.79370962,0.00023619,2]
[394221155,1763391032988,-582.79370962,0.00023619,2]
[394221157,1763391032997,-582.79370962,0.00023619,2]
[394221159,1763391033006,-582.79370962,0.00023619,2]
[394221161,1763391033016,-35048.70383282,0.0002362,2]
[394221164,1763391033028,-1659.15579256,0.0002362,2]
[394221219,1763391038443,-498.942981,0.00020994,2]
[394221221,1763391038453,-341.07748225,0.00020994,2]
[394221223,1763391038463,-500.0,0.00020994,2]
[394221225,1763391038472,-500.0,0.00020994,2]
[394221227,1763391038483,-500.0,0.00020994,2]
[394221229,1763391038493,-381.42164752,0.00020994,2]
[394221231,1763391038503,-500.0,0.00020994,2]
[394221233,1763391038512,-500.0,0.00020994,2]
[394221235,1763391038522,-500.0,0.00020994,2]
[394221237,1763391038538,-500.0,0.00020994,2]
[394221239,1763391038559,-500.0,0.00020994,2]
[394221241,1763391038582,-4824.96332992,0.0002362,2]
[394221243,1763391038594,-620.24461383,0.00023641,4]
[394221244,1763391038605,-500.0,0.00023654,2]
[394221247,1763391038617,-500.0,0.00023654,2]
[394221249,1763391038628,-500.0,0.00023654,2]
[394221251,1763391038638,-500.0,0.00023654,2]
[394221252,1763391038648,-500.0,0.00023654,2]
[394221254,1763391038658,-500.0,0.00023654,2]
[394221256,1763391038667,-500.0,0.00023654,2]
[394221258,1763391038677,-500.0,0.00023654,2]
[394221260,1763391038688,-500.0,0.00023654,2]
[394221262,1763391038697,-500.0,0.00023654,2]
[394221264,1763391038707,-500.0,0.00023654,2]
[394221267,1763391038717,-168.0,0.00023719,2]
[394221269,1763391038727,-1506.06347619,0.00023908,2]
[394221271,1763391038736,-720.0,0.0002403,20]
[394221273,1763391038746,-168.0,0.00024087,2]
[394221275,1763391038755,-500.0,0.00024109,2]
[394221277,1763391038765,-1746.52861043,0.00024123,4]
[394221278,1763391038775,-1506.06347619,0.00024133,2]
[394221281,1763391038785,-5000.0,0.00024356,2]
[394221282,1763391038795,-400.67432439,0.00024386,2]
[394221284,1763391038805,-515.51,0.00024543,3]
[394221286,1763391038815,-1506.0634762,0.000246,2]
[394221288,1763391038827,-184.152,0.00024653,7]
[394221290,1763391038838,-380.0,0.00024658,2]
[394221292,1763391038848,-166.46662109,0.00024659,2]
[394221294,1763391038858,-43749.3067463,0.00024733,2]
[394221296,1763391038867,-2638.4654252,0.00024733,2]
[394221309,1763391038986,-3430.5561781,0.00024747,2]
[394221311,1763391038996,-1043.83340962,0.00024821,2]
[394221314,1763391039011,-470.72135871,0.00024849,2]
[394221316,1763391039021,-154.64055405,0.00024849,2]
[394221318,1763391039031,-618.56221619,0.00024849,2]
[394221320,1763391039041,-168.0,0.00024852,2]
[394221322,1763391039051,-450.87845856,0.00024873,2]
[394221324,1763391039060,-160.0,0.00024896,2]
[394221326,1763391039070,-278.42,0.000249,7]
[394221328,1763391039083,-471.612882,0.000249,2]
[394221330,1763391039094,-24568.79,0.000249,7]
[394221332,1763391039103,-400.67432439,0.000249,7]
[394221334,1763391039113,-554583.8858224,0.000249,2]
[394221368,1763391043709,-48740.0588066,0.000249,2]
[394221369,1763391043719,-500.0,0.00024973,2]
[394221370,1763391043729,-587.8768631,0.00024973,2]
[394221371,1763391043738,-500.0,0.00024973,2]
[394221372,1763391043748,-500.0,0.00024973,2]
[394221373,1763391043758,-501.26527799,0.00024973,2]
[394221374,1763391043768,-502.66529717,0.00024973,2]
[394221375,1763391043782,-500.0,0.00024973,2]
[394221376,1763391043791,-500.0,0.00024973,2]
[394221377,1763391043800,-500.0,0.00024973,2]
[394221378,1763391043809,-370.98799566,0.00024973,2]
[394221379,1763391043819,-500.0,0.00024973,2]
[394221380,1763391043829,-502.44222309,0.00024973,2]
[394221381,1763391043841,-500.0,0.00024973,2]
[394221382,1763391043851,-500.0,0.00024973,2]
[394221383,1763391043862,-500.0,0.00024973,2]
[394221384,1763391043871,-500.0,0.00024973,2]
[394221385,1763391043881,-687.3,0.0002498,3]
[394221386,1763391043890,-343.66,0.0002498,3]
[394221387,1763391043899,-9467.76,0.0002498,10]
[394221388,1763391043908,-100000.0,0.0002499,2]
[394221389,1763391043918,-231.0,0.00024995,2]
[394221390,1763391043927,-27724.14174265,0.00025,5]
[394221391,1763391043937,-214.46937146,0.00025,2]
[394221392,1763391043946,-347.41970597,0.00025,2]
[394221393,1763391043956,-431.25,0.00025,14]
[394221394,1763391043966,-1391.76498644,0.00025144,2]
[394221395,1763391043976,-380.62987463,0.00025205,2]
[394221396,1763391043986,-168.0,0.0002537,2]
[394221397,1763391043996,-151.0,0.0002541,7]
[394221398,1763391044006,-151.0,0.0002541,7]
[394221399,1763391044015,-151.0,0.0002541,7]
[394221400,1763391044025,-151.0,0.0002541,7]
[394221401,1763391044034,-151.0,0.0002541,7]
[394221402,1763391044043,-151.0,0.0002541,7]
[394221403,1763391044053,-280.0,0.00025444,2]
[394221404,1763391044062,-1018.00502542,0.00025521,2]
[394221405,1763391044072,-999.8764051,0.00025521,2]
[394221406,1763391044084,-1000.81735696,0.00025521,2]
[394221407,1763391044093,-1000.0,0.00025521,2]
[394221408,1763391044103,-1000.0,0.00025521,2]
[394221409,1763391044113,-502.77937304,0.00025521,2]
[394221410,1763391044123,-500.0,0.00025521,2]
[394221411,1763391044133,-500.0,0.00025521,2]
[394221412,1763391044142,-231.86002304,0.00025521,2]
[394221413,1763391044152,-501.07386946,0.00025521,2]
[394221414,1763391044162,-168.0,0.00025582,2]
[394221415,1763391044172,-1043.8334096,0.00025716,2]
[394221416,1763391044181,-846.45114723,0.00025717,2]
[394221417,1763391044191,-168.0,0.0002574,2]
[394221418,1763391044200,-236.64920959,0.00025845,2]
[394221419,1763391044210,-1500.0,0.00026068,2]
[394221420,1763391044220,-1500.0,0.00026068,2]
[394221421,1763391044230,-2471.77461591,0.00026241,2]
[394221422,1763391044240,-864.0,0.00026433,30]
[394221423,1763391044250,-1043.8334096,0.00026611,2]
[394221424,1763391044259,-1993.25839247,0.00026616,2]
[394221425,1763391044269,-2000.0,0.00026616,2]
[394221426,1763391044279,-710.518156,0.00026676,2]
[394221427,1763391044289,-151.0,0.00026902,3]
[394221428,1763391044299,-276.71057138,0.00026902,3]
[394221429,1763391044309,-151.0,0.00026918,3]
[394221430,1763391044319,-151.0,0.00026918,3]
[394221431,1763391044329,-202.60732936,0.00026918,3]
[394221432,1763391044342,-151.0,0.00026918,3]
[394221433,1763391044352,-151.0,0.00026918,3]
[394221434,1763391044362,-151.0,0.00026918,3]
[394221435,1763391044372,-1091.201344,0.00026946,2]
[394221436,1763391044382,-1091.201344,0.00026946,2]
[394221437,1763391044391,-1091.201344,0.00026946,2]
[394221438,1763391044401,-1091.201344,0.00026946,2]
[394221439,1763391044411,-345.07192,0.00026946,7]
[394221440,1763391044421,-345.07192,0.00026946,7]
[394221441,1763391044430,-345.07192,0.00026946,7]
[394221442,1763391044440,-345.07192,0.00026946,7]
[394221443,1763391044450,-5000.0,0.00026956,2]
[394221444,1763391044460,-151.0,0.00026956,7]
[394221445,1763391044471,-483.079721,0.00026956,7]
[394221446,1763391044480,-483.079721,0.00026956,7]
[394221447,1763391044489,-483.079721,0.00026956,7]
[394221448,1763391044499,-483.079721,0.00026956,7]
[394221449,1763391044509,-159.828821,0.00026956,7]
[394221450,1763391044519,-159.828821,0.00026956,7]
[394221451,1763391044527,-159.828821,0.00026956,7]
[394221452,1763391044536,-159.828821,0.00026956,7]
[394221453,1763391044545,-258.0,0.00026995,2]
[394221454,1763391044557,-24568.79,0.00027,7]
[394221455,1763391044566,-400.67432439,0.00027,7]
[394221456,1763391044576,-151.0,0.00027,7]
[394221457,1763391044588,-151.0,0.00027,7]
[394221458,1763391044599,-151.0,0.00027,7]
[394221459,1763391044608,-2315.228455,0.00027,7]
[394221460,1763391044618,-2315.228455,0.00027,7]
[394221461,1763391044628,-2315.228455,0.00027,7]
[394221462,1763391044639,-2315.228455,0.00027,7]
[394221463,1763391044648,-151.0,0.00027,7]
[394221464,1763391044658,-151.0,0.00027,7]
[394221465,1763391044667,-199.514952,0.00027,7]
[394221466,1763391044748,-151.0,0.00027,7]
[394221467,1763391044758,-151.0,0.00027,7]
[394221468,1763391044768,-1013.3546122,0.00027123,3]
[394221469,1763391044778,-500.0,0.00027164,2]
[394221470,1763391044787,-629.0,0.00027183,2]
[394221471,1763391044797,-988.0,0.00027183,2]
[394221472,1763391044806,-2150.0,0.00027183,2]
[394221473,1763391044815,-415.084,0.00027183,2]
[394221474,1763391044824,-150.154,0.00027183,2]
[394221475,1763391044834,-413.0,0.00027183,2]
[394221476,1763391044843,-193.198,0.00027183,2]
[394221477,1763391044852,-2717.26102874,0.0002727,2]
[394221478,1763391044861,-151.0,0.00027322,3]
[394221479,1763391044871,-151.0,0.00027322,3]
[394221480,1763391044880,-151.0,0.00027322,3]
[394221481,1763391044890,-151.0,0.00027322,3]
[394221482,1763391044900,-151.0,0.00027322,3]
[394221483,1763391044909,-151.0,0.00027322,3]
[394221484,1763391044918,-151.0,0.00027322,3]
[394221485,1763391044928,-151.0,0.00027322,3]
[394221486,1763391044937,-151.0,0.00027322,3]
[394221487,1763391044947,-151.0,0.00027322,3]
[394221488,1763391044957,-151.0,0.00027322,3]
[394221489,1763391044966,-151.0,0.00027322,3]
[394221490,1763391044976,-151.0,0.00027322,3]
[394221491,1763391044985,-151.0,0.00027322,3]
[394221492,1763391044994,-151.0,0.00027322,3]
[394221493,1763391045004,-151.0,0.00027322,3]
[394221494,1763391045013,-151.0,0.00027322,3]
[394221495,1763391045022,-151.0,0.00027322,3]
[394221496,1763391045031,-151.0,0.00027322,3]
[394221497,1763391045041,-151.0,0.00027322,3]
[394221498,1763391045051,-151.0,0.00027322,3]
[394221499,1763391045060,-151.0,0.00027322,3]
[394221500,1763391045069,-151.0,0.00027322,3]
[394221501,1763391045078,-151.0,0.00027322,3]
[394221502,1763391045091,-151.0,0.00027322,3]
[394221503,1763391045101,-502.73202336,0.00027373,2]
[394221504,1763391045110,-500.0,0.00027373,2]
[394221505,1763391045119,-182.75279002,0.00027373,2]
[394221506,1763391045128,-500.0,0.00027373,2]
[394221507,1763391045138,-500.0,0.00027373,2]
[394221508,1763391045148,-500.0,0.00027373,2]
[394221509,1763391045157,-150.0,0.00027373,2]
[394221510,1763391045167,-274.647791,0.00027397,7]
[394221511,1763391045177,-274.647791,0.00027397,7]
[394221512,1763391045186,-274.647791,0.00027397,7]
[394221513,1763391045196,-274.647791,0.00027397,7]
[394221514,1763391045205,-151.0,0.00027397,7]
[394221515,1763391045215,-151.000062,0.00027397,7]
[394221516,1763391045224,-186.736647,0.00027397,7]
[394221517,1763391045234,-186.736647,0.00027397,7]
[394221518,1763391045243,-186.736647,0.00027397,7]
[394221519,1763391045252,-186.736647,0.00027397,7]
[394221520,1763391045262,-151.0,0.00027397,7]
[394221521,1763391045271,-1091.201344,0.00027397,2]
[394221522,1763391045280,-1091.201344,0.00027397,2]
[394221523,1763391045289,-1091.201344,0.00027397,2]
[394221524,1763391045299,-1091.201344,0.00027397,2]
[394221525,1763391045308,-345.07192,0.00027397,7]
[394221526,1763391045317,-345.07192,0.00027397,7]
[394221527,1763391045327,-345.07192,0.00027397,7]
[394221528,1763391045340,-345.07192,0.00027397,7]
[394221529,1763391045349,-159.828821,0.00027397,7]
[394221530,1763391045358,-159.828821,0.00027397,7]
[394221531,1763391045367,-159.828821,0.00027397,7]
[394221532,1763391045376,-159.828821,0.00027397,7]
[394221533,1763391045385,-151.0,0.00027397,7]
[394221534,1763391045395,-151.0,0.00027397,7]
[394221535,1763391045406,-151.0,0.00027397,7]
[394221536,1763391045415,-2315.228455,0.00027397,7]
[394221537,1763391045424,-2315.228455,0.00027397,7]
[394221538,1763391045434,-2315.228455,0.00027397,7]
[394221539,1763391045443,-2315.228455,0.00027397,7]
[394221540,1763391045451,-151.0,0.00027397,7]
[394221541,1763391045461,-151.0,0.00027397,7]
[394221542,1763391045470,-151.0,0.00027397,7]
[394221543,1763391045479,-151.0,0.00027397,7]
[394221544,1763391045489,-157.611051,0.00027397,7]
[394221545,1763391045499,-28.50288806,0.00027397,7]
[394221546,1763391045627,-242.77154094,0.00027397,7]
[394221547,1763391045639,-73.21522335,0.00027397,7]
[394221550,1763391045975,-77.78477665,0.00027397,7]
[394221551,1763391045985,-151.0,0.00027397,7]
[394221552,1763391045994,-151.0,0.00027397,7]
[394221553,1763391046004,-151.0,0.00027397,7]
[394221554,1763391046013,-151.0,0.00027397,7]
[394221555,1763391046023,-165.154149,0.00027397,7]
[394221556,1763391046032,-165.154149,0.00027397,7]
[394221557,1763391046042,-0.60903062,0.00027397,7]
[394221570,1763391046764,-155.189006,0.00027,7]
[394221571,1763391046774,-164.54511838,0.00027397,7]
[394221572,1763391046784,-165.154149,0.00027397,7]
[394221573,1763391046793,-151.0,0.00027397,7]
[394221574,1763391046803,-151.0,0.00027397,7]
[394221575,1763391046812,-151.0,0.00027397,7]
[394221576,1763391046821,-151.0,0.00027397,7]
[394221577,1763391046831,-151.0,0.00027397,7]
[394221578,1763391046841,-151.0,0.00027397,7]
[394221579,1763391046851,-151.0,0.00027397,7]
[394221580,1763391046860,-151.0,0.00027397,7]
[394221581,1763391046869,-151.0,0.00027397,7]
[394221582,1763391046878,-151.0,0.00027397,7]
[394221583,1763391046887,-151.0,0.00027397,7]
[394221584,1763391046896,-151.0,0.00027397,7]
[394221585,1763391046905,-151.0,0.00027397,7]
[394221586,1763391046915,-151.0,0.00027397,7]
[394221587,1763391046924,-151.0,0.00027397,7]
[394221588,1763391046935,-151.0,0.00027397,7]
[394221589,1763391046945,-151.0,0.00027397,7]
[394221590,1763391046955,-151.0,0.00027397,7]
[394221591,1763391046965,-151.0,0.00027397,7]
[394221592,1763391046975,-151.0,0.00027397,7]
[394221593,1763391046985,-151.0,0.00027397,7]
[394221594,1763391046994,-151.0,0.00027397,7]
[394221595,1763391047014,-151.0,0.00027397,7]
[394221596,1763391047025,-151.0,0.00027397,7]
[394221597,1763391047035,-151.0,0.00027397,7]
[394221598,1763391047045,-151.0,0.00027397,7]
[394221599,1763391047056,-151.0,0.00027397,7]
[394221600,1763391047066,-151.0,0.00027397,7]
[394221601,1763391047076,-151.0,0.00027397,7]
[394221602,1763391047087,-151.0,0.00027397,7]
[394221603,1763391047097,-151.0,0.00027397,7]
[394221604,1763391047107,-151.0,0.00027397,7]
[394221605,1763391047117,-151.0,0.00027397,7]
[394221606,1763391047127,-151.0,0.00027397,7]
[394221607,1763391047136,-151.0,0.00027397,7]
[394221608,1763391047146,-151.0,0.00027397,7]
[394221609,1763391047170,-151.0,0.00027397,7]
[394221610,1763391047189,-151.0,0.00027397,7]
[394221611,1763391047204,-173.912435,0.00027397,7]
[394221612,1763391047220,-173.912435,0.00027397,7]
[394221613,1763391047236,-173.912435,0.00027397,7]
[394221614,1763391047252,-173.912435,0.00027397,7]
[394221615,1763391047270,-151.0,0.00027397,7]
[394221616,1763391047286,-151.0,0.00027397,7]
[394221617,1763391047300,-151.0,0.00027397,7]
[394221618,1763391047319,-151.0,0.00027397,7]
[394221619,1763391047338,-151.0,0.00027397,7]
[394221620,1763391047353,-151.0,0.00027397,7]
[394221621,1763391047365,-151.0,0.00027397,7]
[394221622,1763391047377,-151.0,0.00027397,7]
[394221623,1763391047391,-151.0,0.00027397,7]
[394221624,1763391047406,-151.0,0.00027397,7]
[394221625,1763391047420,-151.0,0.00027397,7]
[394221626,1763391047436,-151.0,0.00027397,7]
[394221627,1763391047454,-151.0,0.00027397,7]
[394221628,1763391047466,-151.0,0.00027397,7]
[394221629,1763391047476,-194.32699,0.00027397,7]
[394221630,1763391047490,-194.32699,0.00027397,7]
[394221631,1763391047506,-175.29552357,0.00027397,7]
[394221637,1763391260902,4732.72431735,0.000165,3]
[394221641,1763391662299,354.21,5e-05,2]
[394221642,1763391662653,354.21,5.1e-05,2]
[394221643,1763391663006,354.21,5.2e-05,2]
[394221644,1763391663349,354.21,5.3e-05,2]
[394221645,1763391663664,354.21,5.4e-05,2]
[394221646,1763391664143,354.21,5.5e-05,2]
[394221647,1763391664455,354.21,5.6e-05,2]
[394221648,1763391664806,354.21,5.7e-05,2]
[394221649,1763391665148,354.21,5.8e-05,2]
[394221650,1763391665546,354.21,5.9e-05,2]
[394221651,1763391665868,354.21,6e-05,2]
[394221652,1763391666213,354.21,6.1e-05,2]
[394221653,1763391666569,354.21,6.2e-05,2]
[394221654,1763391666898,354.21,6.3e-05,2]
[394221655,1763391667453,354.21,6.4e-05,2]
[394221656,1763391668198,354.21,5.742e-05,2]
[394221657,1763391668473,354.21,6.5e-05,2]
[394221658,1763391668887,354.21,6.6e-05,2]
[394221659,1763391670614,354.21,6.7e-05,2]
[394221660,1763391670938,354.21,6.8e-05,2]
[394221661,1763391671279,354.21,6.9e-05,2]
[394221662,1763391671944,354.21,7e-05,2]
[394221663,1763391672112,-167.39594228,0.00013699,2]
[394221664,1763391672393,354.21,7.1e-05,2]
[394221665,1763391672851,354.21,7.2e-05,2]
[394221666,1763391673187,354.21,7.3e-05,2]
[394221667,1763391673516,354.21,7.4e-05,2]
[394221668,1763391674057,354.21,7.6e-05,2]
[394221669,1763391674440,354.21,7.7e-05,2]
[394221670,1763391674767,354.21,7.8e-05,2]
[394221671,1763391675082,354.21,7.9e-05,2]
[394221672,1763391675488,354.21,8e-05,2]
[394221673,1763391676813,354.21,8.1e-05,2]
[394221674,1763391677228,354.21,8.2e-05,2]
[394221675,1763391677814,354.21,8.3e-05,2]
[394221676,1763391678102,354.21,8.4e-05,2]
[394221677,1763391678517,354.21,8.5e-05,2]
[394221678,1763391679038,354.21,8.6e-05,2]
[394221679,1763391679461,109.1710348,8.7e-05,2]
[394221680,1763391687454,-245.0389652,8.7e-05,2]
[394221681,1763391687481,-0.19821769,8.8e-05,2]
[394221682,1763391689645,-296.33321728,8.8e-05,2]
[394221683,1763391692900,-354.01178231,8.712e-05,2]
[394221684,1763391696250,-57.67856503,8.8e-05,2]
[394221685,1763391696279,-136.33580017,8.9e-05,2]
[394221686,1763391703362,-217.87419983,8.9e-05,2]
[394221687,1763391703490,-354.21,9e-05,2]
[394221688,1763391703518,-41.70890194,9.1e-05,2]
[394221689,1763391706541,-175.53106346,9.1e-05,2]
[394221690,1763391707990,-136.9700346,9.1e-05,2]
[394221691,1763391708017,-95.76759919,9.2e-05,2]
[394221692,1763391719241,-258.44240081,9.108e-05,2]
[394221693,1763391719266,-60.00001534,9.2e-05,2]
[394221694,1763391722394,-218.48388949,9.3e-05,2]
[394221695,1763391723928,-354.21,9.7e-05,2]
[394221696,1763391723953,-145.79,9.8e-05,2]
[394221697,1763391742615,159.0,9e-07,2]
[394221698,1763391743664,159.0,9e-07,2]
[394221699,1763391744744,159.0,9e-07,2]
[394221700,1763391745914,159.0,9e-07,2]
[394221701,1763391764659,159.0,9e-07,2]
[394221702,1763391765733,159.0,9e-07,2]
[394221703,1763391782673,154.23,5e-05,2]
[394221704,1763391783012,154.23,5.4e-05,2]
[394221705,1763391783479,154.23,5.7e-05,2]
[394221706,1763391783887,154.23,6.1e-05,2]
[394221707,1763391784090,154.23,6.4e-05,2]
[394221708,1763391784432,154.23,6.8e-05,2]
[394221709,1763391784763,154.23,7.1e-05,2]
[394221710,1763391785280,154.23,7.5e-05,2]
[394221711,1763391785604,154.23,7.9e-05,2]
[394221712,1763391785929,154.23,8.2e-05,2]
[394221713,1763391786341,154.23,8.6e-05,2]
[394221714,1763391786638,154.23,8.9e-05,2]
[394221715,1763391787722,154.23,9.3e-05,2]
[394221716,1763391788057,154.23,9.6e-05,2]
[394221717,1763391843149,154.17,5e-05,2]
[394221719,1763392062073,-300.0,0.00012897,2]
[394221720,1763392063767,-310.15941068,0.00012897,2]
[394221721,1763392066407,-175.52271418,0.00012897,2]
[394221722,1763392070557,-167.38889056,0.00012897,2]
[394221723,1763392070578,-34.59055445,0.00013027,2]
[394221724,1763392074085,-500.0,0.00013027,2]
[394221725,1763392075457,-158.11418997,0.00013027,2]
[394221726,1763392080653,-188.46558166,0.00012897,2]
[394221727,1763392080924,205.15,0.00014535,20]
[394221728,1763392086296,-71.90068934,0.00012897,2]
[394221729,1763392086319,-180.29025997,0.00013027,2]